bitfinex/quotes_BTCUSD_20210402
["timestamp","ask_amount","ask_price","bid_price","bid_amount"]
[1617376578058,0.077,59503.0,59502.0,1.038113]
[1617376578259,0.077,59503.0,59502.0,1.39069393]
[1617376578660,0.077,59503.0,59502.0,1.238113]
[1617376578864,0.077,59503.0,59502.0,1.39069393]
[1617376579062,0.252153,59504.0,59502.0,1.38569393]
[1617376579261,0.252153,59504.0,59503.0,0.705]
[1617376579462,0.252153,59504.0,59503.0,1.093113]
[1617376579659,0.252153,59504.0,59503.0,1.44069393]
[1617376579860,0.252153,59504.0,59503.0,1.093113]
[1617376580062,0.252153,59504.0,59503.0,1.44069393]
[1617376580259,0.252153,59504.0,59503.0,1.093113]
[1617376580460,0.252153,59504.0,59503.0,1.44069393]
[1617376580709,0.252153,59504.0,59503.0,1.093113]
[1617376580911,0.252153,59504.0,59503.0,1.44069393]
[1617376581310,0.252153,59504.0,59503.0,1.64069393]
[1617376581711,0.252153,59504.0,59503.0,1.44069393]
[1617376581909,0.252153,59504.0,59503.0,1.093113]
[1617376582111,0.252153,59504.0,59503.0,1.44069393]
[1617376582514,0.247153,59504.0,59503.0,1.44069393]
[1617376582714,0.247153,59504.0,59503.0,1.51387669]
[1617376583116,0.247153,59504.0,59503.0,1.093113]
[1617376583403,0.247153,59504.0,59503.0,1.44069393]
[1617376583609,0.247153,59504.0,59503.0,1.093113]
[1617376583807,0.247153,59504.0,59503.0,1.43968585]
[1617376584004,0.247153,59504.0,59503.0,1.09210492]
[1617376584206,0.24753045,59504.0,59503.0,1.43968585]
[1617376584402,0.24160545,59504.0,59503.0,1.16528768]
[1617376584604,0.24160545,59504.0,59503.0,1.51286861]
[1617376585003,0.24160545,59504.0,59503.0,1.43968585]
[1617376585204,0.24160545,59504.0,59503.0,1.09210492]
[1617376585404,0.24160545,59504.0,59503.0,1.51286861]
[1617376585604,0.24160545,59504.0,59503.0,1.16528768]
[1617376585803,0.24160545,59504.0,59503.0,1.16028768]
[1617376586022,0.24160545,59504.0,59503.0,1.08710492]
[1617376586220,0.24160545,59504.0,59503.0,1.43468585]
[1617376586424,0.55531545,59504.0,59503.0,1.50786861]
[1617376587025,0.55531545,59504.0,59503.0,1.16028768]
[1617376587225,0.55531545,59504.0,59503.0,1.43468585]
[1617376587422,0.55531545,59504.0,59503.0,1.16028768]
[1617376587626,0.55531545,59504.0,59503.0,1.50786861]
[1617376587825,0.55531545,59504.0,59503.0,1.16028768]
[1617376588025,0.55531545,59504.0,59503.0,1.50786861]
[1617376588428,0.55531545,59504.0,59503.0,1.16028768]
[1617376588854,0.55531545,59504.0,59503.0,1.43468585]
[1617376589054,0.55531545,59504.0,59503.0,1.50786861]
[1617376589251,0.55531545,59504.0,59503.0,1.16028768]
[1617376589455,0.24160545,59504.0,59503.0,1.16028768]
[1617376589655,0.24160545,59504.0,59503.0,1.08710492]
[1617376589853,0.24160545,59504.0,59503.0,1.43468585]
[1617376590052,0.24160545,59504.0,59503.0,1.16028768]
[1617376590253,0.24160545,59504.0,59503.0,1.36028768]
[1617376590652,0.24160545,59504.0,59503.0,1.16028768]
[1617376591474,0.24160545,59504.0,59503.0,2.01684861]
[1617376591675,0.00037745,59504.0,59503.0,2.52280268]
[1617376591875,0.00037745,59504.0,59503.0,2.87038361]
[1617376592080,0.00037745,59504.0,59503.0,6.43038361]
[1617376593076,0.00037745,59504.0,59503.0,6.68247661]
[1617376593473,0.00037745,59504.0,59503.0,5.98265161]
[1617376593676,0.00037745,59504.0,59503.0,5.82967161]
[1617376593892,0.00037745,59504.0,59503.0,5.76596161]
[1617376594095,0.00037745,59504.0,59503.0,5.51386861]
[1617376594296,0.00037745,59504.0,59503.0,1.95386861]
[1617376594891,0.00037745,59504.0,59503.0,1.94886861]
[1617376595099,0.00037745,59504.0,59503.0,3.62886861]
[1617376596292,0.00037745,59504.0,59503.0,4.32869361]
[1617376596730,0.00037745,59504.0,59503.0,4.33842747]
[1617376596924,0.00037745,59504.0,59503.0,4.54342747]
[1617376597120,0.00037745,59504.0,59503.0,4.56886861]
[1617376597324,0.00037745,59504.0,59503.0,3.62886861]
[1617376597527,0.00037745,59504.0,59503.0,3.42886861]
[1617376599197,0.00037745,59504.0,59503.0,1.65886861]
[1617376599796,0.00037745,59504.0,59503.0,1.86386861]
[1617376599997,0.00037745,59504.0,59503.0,1.65886861]
[1617376600997,0.00037745,59504.0,59503.0,2.72886861]
[1617376601402,0.00037745,59504.0,59503.0,1.65886861]
[1617376602800,0.00037745,59504.0,59503.0,1.85886861]
[1617376603002,0.00037745,59504.0,59503.0,3.98886861]
[1617376603995,0.00037745,59504.0,59503.0,1.85886861]
[1617376604198,0.00037745,59504.0,59503.0,1.65886861]
[1617376604400,0.00037745,59504.0,59503.0,1.86386861]
[1617376604600,0.00037745,59504.0,59503.0,1.65886861]
[1617376604799,0.00037745,59504.0,59503.0,1.86386861]
[1617376604999,0.00037745,59504.0,59503.0,1.50286861]
[1617376606005,0.00037745,59504.0,59503.0,1.85686861]
[1617376606402,0.00037745,59504.0,59503.0,2.06186861]
[1617376606603,0.00037745,59504.0,59503.0,1.85686861]
[1617376607025,0.00037745,59504.0,59503.0,3.25686861]
[1617376608028,0.00037745,59504.0,59503.0,1.85686861]
[1617376609850,0.00037745,59504.0,59503.0,4.79686861]
[1617376610053,0.00037745,59504.0,59503.0,1.94686861]
[1617376610852,0.00037745,59504.0,59503.0,3.25186861]
[1617376611053,0.00037745,59504.0,59503.0,1.95186861]
[1617376611250,0.00037745,59504.0,59503.0,1.74686861]
[1617376611650,0.00037745,59504.0,59503.0,1.94686861]
[1617376611852,0.00037745,59504.0,59503.0,2.88686861]
[1617376612887,0.00037745,59504.0,59503.0,1.94686861]
[1617376613734,0.00037745,59504.0,59503.0,2.04686861]
[1617376613935,0.00037745,59504.0,59503.0,3.05686861]
[1617376614133,0.00037745,59504.0,59503.0,2.04686861]
[1617376614933,0.00037745,59504.0,59503.0,4.56686861]
[1617376615336,0.00037745,59504.0,59503.0,5.26669361]
[1617376615538,0.00037745,59504.0,59503.0,5.39747586]
[1617376615741,0.00037745,59504.0,59503.0,6.47747586]
[1617376615938,0.00037745,59504.0,59503.0,6.68247586]
[1617376616535,0.00037745,59504.0,59503.0,6.47747586]
[1617376616736,0.00037745,59504.0,59503.0,6.68247586]
[1617376616941,0.00037745,59504.0,59503.0,6.93455386]
[1617376617336,0.00037745,59504.0,59503.0,7.07656654]
[1617376618340,0.00037745,59504.0,59503.0,7.07456654]
[1617376618733,0.00037745,59504.0,59503.0,5.99656654]
[1617376618938,0.00037745,59504.0,59503.0,5.29674154]
[1617376619141,0.00037745,59504.0,59503.0,5.19674154]
[1617376619339,0.00037745,59504.0,59503.0,4.94466354]
[1617376619735,0.00037745,59504.0,59503.0,6.01966354]
[1617376620551,0.00037745,59504.0,59503.0,6.11966354]
[1617376620749,0.00013673,59504.0,59503.0,6.11766354]
[1617376620953,0.00013673,59504.0,59503.0,6.11966354]
[1617376621351,0.00013673,59504.0,59503.0,6.11766354]
[1617376621551,0.00013673,59504.0,59503.0,6.11966354]
[1617376621952,0.00013673,59504.0,59503.0,6.11966306]
[1617376622553,0.0509908,59504.0,59503.0,6.11966306]
[1617376622775,0.0509908,59504.0,59503.0,7.12922192]
[1617376622979,0.00098831,59509.0,59503.0,7.12922192]
[1617376623187,0.01976622,59514.0,59503.0,7.12922192]
[1617376623188,0.00098828,59510.0,59508.0,2.780134]
[1617376623384,0.00296476,59516.0,59513.0,0.155]
[1617376623583,0.00296476,59516.0,59510.0,1.88516524]
[1617376623584,0.00296476,59516.0,59515.0,4.3403417]
[1617376623788,0.01976423,59519.0,59517.0,0.35516524]
[1617376623986,0.01973418,59528.0,59519.0,0.35516524]
[1617376624191,0.0002,59531.0,59527.0,0.08618709]
[1617376624382,0.0002,59531.0,59530.0,3.586134]
[1617376624588,0.0002,59531.0,59530.0,5.07853993]
[1617376624781,0.88269422,59534.0,59533.0,3.526134]
[1617376624979,0.88269422,59534.0,59533.0,4.05871493]
[1617376625179,0.88269422,59534.0,59533.0,4.90853993]
[1617376625420,0.60592077,59534.0,59533.0,5.86916879]
[1617376625618,0.60592077,59534.0,59533.0,7.13933403]
[1617376625814,0.30934608,59534.0,59533.0,7.13933403]
[1617376626013,0.30934608,59534.0,59533.0,7.37933403]
[1617376626217,0.03945426,59558.0,59533.0,7.67933403]
[1617376626415,0.03945426,59558.0,59541.0,0.05]
[1617376626620,0.03945426,59558.0,59557.0,3.83826156]
[1617376626819,0.03945243,59561.0,59557.0,5.41583556]
[1617376627019,0.03945116,59562.0,59559.0,0.19999952]
[1617376627217,0.03945071,59563.0,59561.0,0.159]
[1617376627420,0.03945071,59563.0,59560.0,0.1]
[1617376627421,0.300175,59562.0,59560.0,0.1]
[1617376627620,0.41660942,59562.0,59558.0,0.1]
[1617376627817,0.07698391,59562.0,59558.0,0.1]
[1617376628026,0.33962569,59562.0,59559.0,0.386134]
[1617376628224,0.03945069,59562.0,59560.0,0.1]
[1617376628487,0.251896,59572.0,59560.0,1.07371493]
[1617376628488,0.07699301,59561.0,59560.0,1.07371493]
[1617376628887,0.03944944,59564.0,59560.0,0.68758093]
[1617376629084,0.03944944,59564.0,59561.0,0.285]
[1617376629085,0.33962444,59564.0,59561.0,0.285]
[1617376629286,0.03944944,59564.0,59562.0,2.526134]
[1617376629492,0.07698722,59563.0,59562.0,0.72871493]
[1617376629686,0.03944944,59564.0,59562.0,3.00771493]
[1617376629886,0.03944944,59564.0,59563.0,0.61258093]
[1617376630086,0.03944944,59564.0,59563.0,0.99871493]
[1617376630285,0.33962444,59564.0,59563.0,0.51258093]
[1617376630485,0.03944816,59565.0,59563.0,0.51258093]
[1617376630686,0.300175,59565.0,59563.0,0.51258093]
[1617376630884,0.295175,59565.0,59563.0,0.17]
[1617376631088,0.07697922,59564.0,59560.0,0.164]
[1617376631288,0.295175,59565.0,59560.0,0.50658093]
[1617376631494,0.002,59571.0,59561.0,0.1]
[1617376631688,0.295175,59570.0,59561.0,0.32529374]
[1617376631895,0.002,59570.0,59569.0,0.158]
[1617376632097,0.002,59570.0,59569.0,1.25034774]
[1617376632291,0.002,59570.0,59569.0,1.59292867]
[1617376632491,0.002,59570.0,59569.0,1.56195991]
[1617376632687,0.297175,59570.0,59569.0,1.47366617]
[1617376632890,0.002,59570.0,59569.0,1.47366617]
[1617376633290,0.002,59570.0,59569.0,1.17866617]
[1617376633487,0.002,59570.0,59569.0,0.82350093]
[1617376633889,0.002,59570.0,59569.0,1.04879467]
[1617376634294,0.002,59570.0,59569.0,2.03950867]
[1617376634688,0.002,59570.0,59569.0,5.63950867]
[1617376635089,0.00128417,59579.0,59570.0,0.558202]
[1617376635290,0.00328417,59579.0,59578.0,3.95516524]
[1617376635490,0.29845917,59579.0,59578.0,0.89774569]
[1617376636106,0.00328417,59579.0,59578.0,0.54258045]
[1617376636306,0.00328417,59579.0,59578.0,0.72687467]
[1617376636506,0.00328417,59579.0,59578.0,3.29758093]
[1617376636706,0.00328417,59579.0,59578.0,3.72287419]
[1617376636908,0.295175,59587.0,59579.0,1.52]
[1617376637106,0.295175,59587.0,59580.0,0.34258093]
[1617376637306,0.295175,59587.0,59581.0,0.34258093]
[1617376637505,0.297175,59587.0,59581.0,0.16]
[1617376637708,0.295175,59586.0,59582.0,0.1]
[1617376637907,0.295175,59586.0,59582.0,0.295]
[1617376638105,0.00238666,59586.0,59582.0,0.64258045]
[1617376638307,0.00238666,59586.0,59583.0,0.34258093]
[1617376638554,0.00238666,59586.0,59585.0,0.1]
[1617376638741,0.00238666,59586.0,59585.0,0.27]
[1617376638937,0.00038666,59586.0,59585.0,0.17]
[1617376639346,0.00038666,59586.0,59583.0,0.35006289]
[1617376639540,0.295175,59585.0,59584.0,0.34258093]
[1617376639744,0.00038666,59586.0,59583.0,0.00748196]
[1617376639745,0.29556166,59586.0,59583.0,0.00748196]
[1617376639939,0.295175,59585.0,59583.0,0.00748196]
[1617376640340,0.286175,59585.0,59583.0,0.00748196]
[1617376640741,0.300467,59584.0,59583.0,0.00748196]
[1617376640940,0.586642,59584.0,59583.0,0.00748196]
[1617376641346,0.300467,59584.0,59583.0,0.00748196]
[1617376641551,0.00038666,59586.0,59583.0,0.00748196]
[1617376641748,0.28656166,59586.0,59583.0,0.00748196]
[1617376641954,0.28156166,59586.0,59583.0,0.00748196]
[1617376642145,0.300467,59584.0,59583.0,0.00748196]
[1617376642746,0.58202866,59584.0,59583.0,0.00748196]
[1617376642948,0.300467,59584.0,59583.0,0.00748196]
[1617376644009,0.295467,59584.0,59583.0,0.00748196]
[1617376644212,0.01488417,59589.0,59583.0,0.00748196]
[1617376644410,0.28156166,59588.0,59583.0,0.00748196]
[1617376644613,0.29644583,59589.0,59583.0,0.00748196]
[1617376645010,0.28156166,59588.0,59583.0,0.00748196]
[1617376645611,0.295533,59584.0,59583.0,0.00748196]
[1617376646212,0.01488417,59589.0,59583.0,0.00748196]
[1617376646411,0.295533,59588.0,59583.0,0.00748196]
[1617376646615,0.01488417,59589.0,59583.0,0.00748196]
[1617376646813,0.290533,59584.0,59583.0,0.00748196]
[1617376647413,0.01488417,59589.0,59583.0,0.00748196]
[1617376647613,0.29644583,59589.0,59583.0,0.00748196]
[1617376648422,0.01488417,59589.0,59583.0,0.00748196]
[1617376648619,0.0003401,59588.0,59583.0,0.35006289]
[1617376648813,0.0003401,59588.0,59583.0,0.00748196]
[1617376649631,0.0003401,59588.0,59583.0,0.70522813]
[1617376649835,0.0003401,59588.0,59584.0,0.50758093]
[1617376650032,0.0003401,59588.0,59583.0,0.00748196]
[1617376650834,0.0003401,59588.0,59584.0,0.1]
[1617376651036,0.0003401,59588.0,59584.0,0.79971093]
[1617376651644,0.0003401,59588.0,59585.0,0.21]
[1617376651845,0.0003401,59588.0,59586.0,0.34258093]
[1617376652246,0.0003401,59588.0,59583.0,0.00748196]
[1617376652449,0.01211427,59589.0,59584.0,2.45]
[1617376652647,0.01211427,59589.0,59585.0,0.19999952]
[1617376652847,0.01211427,59589.0,59583.0,0.00748196]
[1617376653047,0.01211427,59589.0,59585.0,0.1]
[1617376653852,0.01211427,59589.0,59584.0,0.34258093]
[1617376654053,0.03937022,59587.0,59583.0,0.10748196]
[1617376654279,0.0514846,59589.0,59583.0,0.10748196]
[1617376654480,0.0514846,59589.0,59587.0,0.135]
[1617376654676,0.0514846,59589.0,59583.0,0.10748196]
[1617376654878,0.03937001,59588.0,59583.0,0.00748196]
[1617376655480,0.11971247,59588.0,59583.0,0.00748196]
[1617376655678,0.03937037,59587.0,59583.0,0.00748196]
[1617376655884,0.11971426,59587.0,59583.0,0.00748196]
[1617376656280,0.03937037,59587.0,59583.0,0.00748196]
[1617376656479,0.08034418,59586.0,59583.0,0.00748196]
[1617376656923,0.03937037,59587.0,59584.0,0.34258093]
[1617376657128,0.08034464,59585.0,59583.0,0.00748196]
[1617376657327,0.11940948,59587.0,59583.0,0.00748196]
[1617376657523,0.03906437,59587.0,59583.0,0.00748196]
[1617376658724,0.08034053,59588.0,59583.0,0.00748196]
[1617376659124,0.00029689,59586.0,59583.0,0.00748196]
[1617376659324,0.00029689,59586.0,59584.0,0.34258093]
[1617376659538,0.07937613,59585.0,59584.0,0.54258045]
[1617376659731,0.07937613,59585.0,59583.0,0.00748196]
[1617376659933,0.07937613,59585.0,59584.0,0.34258093]
[1617376660133,0.07937613,59585.0,59584.0,3.05258045]
[1617376660334,0.07937613,59585.0,59584.0,0.74258045]
[1617376660533,0.07937613,59585.0,59584.0,2.565]
[1617376660733,0.07937613,59585.0,59584.0,3.46358045]
[1617376660933,0.07937613,59585.0,59584.0,1.04358045]
[1617376661132,0.07937613,59585.0,59584.0,0.84358045]
[1617376661331,0.07937613,59585.0,59584.0,1.04358045]
[1617376661531,0.07937613,59585.0,59584.0,0.84358045]
[1617376662150,0.07937613,59585.0,59584.0,0.64358093]
[1617376662552,0.07937613,59585.0,59583.0,0.00748196]
[1617376662957,0.07937613,59585.0,59583.0,0.00248196]
[1617376663357,0.07957768,59584.0,59583.0,0.00248196]
[1617376663557,0.07957797,59585.0,59583.0,0.00248196]
[1617376663955,0.07957797,59585.0,59584.0,2.07258045]
[1617376664156,0.36113963,59585.0,59584.0,0.19999952]
[1617376664362,0.36113963,59585.0,59579.0,0.34258093]
[1617376664563,0.36113668,59584.0,59575.0,0.29561817]
[1617376664780,0.05920164,59582.0,59576.0,0.64774617]
[1617376664982,0.28156166,59581.0,59577.0,0.35516524]
[1617376665180,0.28156166,59581.0,59575.0,0.1]
[1617376665378,0.07957001,59580.0,59575.0,0.1]
[1617376665583,0.27656166,59579.0,59575.0,0.1]
[1617376665782,0.251882,59577.0,59572.0,0.05]
[1617376665982,0.26964003,59576.0,59572.0,0.34258093]
[1617376666379,0.07964003,59576.0,59573.0,0.29258093]
[1617376666579,0.05918363,59580.0,59570.0,0.05]
[1617376666580,0.13887113,59580.0,59570.0,0.05]
[1617376666780,0.27656166,59579.0,59567.0,0.00303724]
[1617376666978,0.251881,59575.0,59567.0,0.43762903]
[1617376667180,0.251881,59575.0,59568.0,0.385712]
[1617376667402,0.07969006,59574.0,59568.0,0.67329293]
[1617376667608,0.07969006,59574.0,59570.0,0.385712]
[1617376668007,0.07968984,59579.0,59571.0,0.28758093]
[1617376668207,0.07968999,59580.0,59569.0,0.00303724]
[1617376668403,0.23433999,59580.0,59569.0,0.00303724]
[1617376668605,0.0796878,59579.0,59567.0,0.51487803]
[1617376668802,0.0796878,59579.0,59568.0,0.385712]
[1617376669003,0.251876,59578.0,59568.0,0.66829293]
[1617376669205,0.251876,59578.0,59567.0,0.65188889]
[1617376669407,0.07968847,59577.0,59567.0,0.65188889]
[1617376669606,0.07968847,59577.0,59567.0,0.42762903]
[1617376669808,0.07968891,59578.0,59567.0,0.42762903]
[1617376670023,0.07968781,59576.0,59567.0,0.65188889]
[1617376670227,0.07968781,59577.0,59568.0,0.385712]
[1617376670424,0.07968781,59577.0,59568.0,1.03456365]
[1617376670625,0.07968822,59578.0,59568.0,1.03456365]
[1617376670831,0.07968822,59578.0,59570.0,0.385712]
[1617376671033,0.07968822,59578.0,59571.0,0.1]
[1617376671229,0.07968822,59578.0,59572.0,0.385712]
[1617376671431,0.07968822,59578.0,59575.0,0.156]
[1617376671630,0.07968822,59578.0,59576.0,0.385712]
[1617376671830,0.07968822,59578.0,59576.0,0.76829293]
[1617376672031,0.07968822,59578.0,59576.0,0.385712]
[1617376672227,0.07968822,59578.0,59576.0,0.66329293]
[1617376672658,0.07968822,59578.0,59576.0,0.27758093]
[1617376672857,0.07968822,59578.0,59574.0,0.41959179]
[1617376673864,0.07968822,59578.0,59574.0,0.36627072]
[1617376674064,0.07468822,59578.0,59575.0,0.647712]
[1617376674267,0.00028912,59579.0,59577.0,2.245712]
[1617376674465,0.00028912,59579.0,59578.0,0.27758093]
[1617376674666,0.00028912,59579.0,59574.0,0.41959179]
[1617376674867,0.00028912,59579.0,59573.0,0.251832]
[1617376674868,0.00028912,59579.0,59575.0,0.27758093]
[1617376675071,0.00028912,59579.0,59573.0,0.251832]
[1617376675270,0.00028912,59579.0,59572.0,0.004]
[1617376675478,0.00028912,59579.0,59573.0,0.1]
[1617376675866,0.00028912,59579.0,59574.0,0.66329293]
[1617376676067,0.00028912,59579.0,59575.0,0.135]
[1617376676267,0.00028912,59579.0,59572.0,0.004]
[1617376676468,0.00028912,59579.0,59574.0,0.251825]
[1617376676670,0.00028912,59579.0,59574.0,0.27758093]
[1617376676867,0.00028912,59579.0,59569.0,0.00303724]
[1617376677269,0.05950369,59579.0,59569.0,0.00303724]
[1617376677669,0.00028912,59579.0,59569.0,0.00303724]
[1617376677871,0.05950445,59579.0,59569.0,0.00303724]
[1617376678081,0.13925436,59579.0,59571.0,0.28061817]
[1617376678280,0.13925436,59579.0,59570.0,0.00303724]
[1617376678281,0.05950445,59579.0,59570.0,0.00303724]
[1617376678683,0.07975382,59578.0,59569.0,0.14201086]
[1617376679079,0.07975382,59578.0,59568.0,0.1450481]
[1617376679281,0.08090507,59579.0,59570.0,0.385712]
[1617376679481,0.08061551,59577.0,59568.0,0.42262903]
[1617376679689,0.08061563,59578.0,59571.0,0.27758093]
[1617376679882,0.08061563,59578.0,59572.0,0.385712]
[1617376680082,0.08061525,59576.0,59572.0,0.76329293]
[1617376680281,0.08061525,59577.0,59576.0,0.385712]
[1617376680481,0.08061525,59577.0,59576.0,0.98755279]
[1617376680713,0.080614,59578.0,59577.0,0.385712]
[1617376680914,0.0592142,59581.0,59578.0,0.27758093]
[1617376681314,0.0592142,59581.0,59572.0,0.00303724]
[1617376681513,0.4981,59603.0,59572.0,0.48874924]
[1617376681714,0.002,59589.0,59575.0,0.0046]
[1617376681911,0.27656166,59588.0,59576.0,0.00303724]
[1617376682112,0.251851,59583.0,59581.0,0.005]
[1617376682512,0.71325345,59577.0,59573.0,3.43758093]
[1617376682714,0.71325345,59577.0,59573.0,3.58159179]
[1617376682910,0.71325345,59577.0,59574.0,0.66329293]
[1617376683110,0.71325345,59577.0,59575.0,0.50689869]
[1617376683337,0.71325345,59577.0,59576.0,4.41529293]
[1617376683736,0.71325345,59577.0,59576.0,4.99730379]
[1617376683937,0.71325345,59577.0,59576.0,4.83530379]
[1617376684134,0.71325345,59577.0,59576.0,1.24530379]
[1617376684336,0.71325345,59577.0,59576.0,0.80530379]
[1617376684732,0.71325345,59577.0,59576.0,0.66329293]
[1617376684933,0.71325345,59577.0,59576.0,0.385712]
[1617376685134,0.71325345,59577.0,59576.0,2.87729293]
[1617376685336,0.71325345,59577.0,59576.0,2.71329293]
[1617376685533,0.71325345,59577.0,59576.0,3.03329293]
[1617376685735,0.71325345,59577.0,59576.0,3.17530379]
[1617376686165,0.71325345,59577.0,59576.0,2.85530379]
[1617376686568,0.71325345,59577.0,59576.0,0.52772286]
[1617376686764,0.71325345,59577.0,59576.0,0.385712]
[1617376687566,0.71325345,59577.0,59574.0,0.251835]
[1617376687769,0.71325345,59577.0,59570.0,0.00303724]
[1617376687969,0.71325345,59577.0,59575.0,0.385712]
[1617376688170,0.71325345,59577.0,59576.0,0.385712]
[1617376688652,0.71325345,59577.0,59572.0,0.38]
[1617376688840,0.71325345,59577.0,59569.0,0.00303724]
[1617376689039,0.71325345,59577.0,59571.0,0.251848]
[1617376689239,0.70825345,59577.0,59572.0,0.385712]
[1617376689438,0.70825345,59577.0,59572.0,0.52772286]
[1617376689837,0.70825345,59577.0,59576.0,3.736712]
[1617376690039,0.70825345,59577.0,59576.0,1.366712]
[1617376690442,0.70825345,59577.0,59576.0,1.50872286]
[1617376690639,0.70825345,59577.0,59576.0,0.68872286]
[1617376691039,0.70854436,59577.0,59576.0,0.68872286]
[1617376691239,0.70854436,59577.0,59576.0,0.84872286]
[1617376691641,0.20854436,59577.0,59576.0,3.36429293]
[1617376692040,0.20854436,59577.0,59576.0,4.08773127]
[1617376692248,0.20854436,59577.0,59576.0,4.85523127]
[1617376692645,0.20854436,59577.0,59576.0,5.35523079]
[1617376692841,0.20854436,59577.0,59576.0,5.49724165]
[1617376693041,0.20854436,59577.0,59576.0,6.71697551]
[1617376693240,0.20854436,59577.0,59576.0,6.76697551]
[1617376693842,0.20854436,59577.0,59576.0,7.10270851]
[1617376694844,0.20854436,59577.0,59576.0,7.23774153]
[1617376695244,0.20854436,59577.0,59576.0,6.45930319]
[1617376695447,0.20854436,59577.0,59576.0,5.87008307]
[1617376695647,0.20854436,59577.0,59576.0,5.57008307]
[1617376697859,0.20854436,59577.0,59576.0,6.28378755]
[1617376699087,0.20854436,59577.0,59576.0,6.33378755]
[1617376699692,0.20854436,59577.0,59576.0,6.63378755]
[1617376700686,0.20854436,59577.0,59576.0,6.73378755]
[1617376700888,0.20854436,59577.0,59576.0,6.77378755]
[1617376701087,0.20854436,59577.0,59576.0,6.82378755]
[1617376702903,0.20854436,59577.0,59576.0,6.10034921]
[1617376703301,0.20854436,59577.0,59576.0,5.80034921]
[1617376703959,0.20854436,59577.0,59576.0,6.10034921]
[1617376705764,0.20854436,59577.0,59576.0,2.42034921]
[1617376705965,0.20854436,59577.0,59576.0,1.50351921]
[1617376706364,0.20854436,59577.0,59576.0,1.36150835]
[1617376706973,0.20854436,59577.0,59576.0,1.02577535]
[1617376707164,0.20854436,59577.0,59576.0,0.86577535]
[1617376707363,0.20854436,59577.0,59576.0,0.66577583]
[1617376707567,0.20854436,59577.0,59576.0,0.3931949]
[1617376707761,0.20854436,59577.0,59576.0,0.0074829]
[1617376709160,0.63407736,59577.0,59576.0,0.0074829]
[1617376709362,0.34354436,59577.0,59576.0,0.0074829]
[1617376710186,0.20854436,59577.0,59576.0,0.0074829]
[1617376712614,0.20854436,59577.0,59576.0,0.66577583]
[1617376713012,0.20354436,59577.0,59576.0,3.26577583]
[1617376713215,0.20354436,59577.0,59576.0,1.26577583]
[1617376713413,0.20354436,59577.0,59576.0,0.66577583]
[1617376713614,0.20354436,59577.0,59576.0,0.3931949]
[1617376714615,0.20354436,59577.0,59576.0,0.3631949]
[1617376714839,0.20354436,59577.0,59572.0,0.335775]
[1617376715038,0.20354436,59577.0,59567.0,0.00303724]
[1617376715245,0.40780541,59576.0,59565.0,0.335798]
[1617376715449,4.10083605,59575.0,59561.0,0.34556386]
[1617376715648,4.10083605,59575.0,59560.0,0.04325687]
[1617376715649,0.0046,59573.0,59560.0,0.04325687]
[1617376715842,0.27656166,59572.0,59555.0,0.01]
[1617376716044,0.31512613,59561.0,59555.0,0.01]
[1617376716244,0.31512613,59561.0,59556.0,0.385783]
[1617376716245,0.79226613,59561.0,59556.0,0.385783]
[1617376716446,0.79226613,59561.0,59557.0,0.385783]
[1617376716447,0.3644555,59560.0,59557.0,0.385783]
[1617376716641,0.20945708,59559.0,59556.0,0.385783]
[1617376716838,0.21,59558.0,59556.0,0.385783]
[1617376717038,0.52514176,59558.0,59556.0,0.385783]
[1617376717240,0.20944761,59557.0,59556.0,0.385783]
[1617376717467,0.20944761,59557.0,59555.0,0.01]
[1617376717665,0.20944761,59557.0,59547.0,1.7289]
[1617376717666,2.49,59555.0,59547.0,1.7289]
[1617376717868,0.58392607,59556.0,59548.0,0.385783]
[1617376718067,0.31517973,59551.0,59550.0,0.385783]
[1617376719109,0.00303724,59566.0,59550.0,0.385783]
[1617376719513,0.27656166,59560.0,59550.0,0.385783]
[1617376719710,0.27656166,59560.0,59547.0,1.7309]
[1617376719913,0.27656166,59560.0,59547.0,1.7289]
[1617376720309,0.27656166,59560.0,59543.0,0.2]
[1617376720513,0.251979,59555.0,59543.0,0.2]
[1617376721108,0.251979,59555.0,59544.0,0.385783]
[1617376722312,0.340389,59558.0,59544.0,0.385783]
[1617376722508,0.0044,59558.0,59544.0,0.385783]
[1617376722912,0.0048,59562.0,59544.0,0.387783]
[1617376723112,0.0048,59562.0,59544.0,0.382783]
[1617376723318,0.00027282,59557.0,59551.0,0.157]
[1617376723514,0.00027282,59557.0,59552.0,0.385783]
[1617376725112,0.00027282,59557.0,59552.0,0.543783]
[1617376725343,0.00027282,59557.0,59556.0,1.39]
[1617376725541,0.00027282,59557.0,59556.0,1.775851]
[1617376726341,0.52180072,59570.0,59557.0,2.37]
[1617376726541,0.28076166,59569.0,59555.0,0.002]
[1617376726740,0.66241266,59568.0,59555.0,0.002]
[1617376726938,0.135,59567.0,59555.0,0.002]
[1617376727138,0.317926,59566.0,59555.0,0.002]
[1617376727337,0.135,59567.0,59555.0,0.002]
[1617376727539,0.27656166,59567.0,59555.0,0.002]
[1617376727965,0.0044,59565.0,59550.0,0.002]
[1617376728163,0.27656166,59564.0,59551.0,0.154]
[1617376728565,0.0044,59565.0,59551.0,0.154]
[1617376728764,0.385851,59568.0,59551.0,0.154]
[1617376729161,0.66241266,59568.0,59551.0,0.154]
[1617376729568,0.0046,59565.0,59551.0,0.154]
[1617376729769,0.27656166,59564.0,59544.0,0.00303724]
[1617376729967,0.0052,59560.0,59544.0,0.00303724]
[1617376730165,0.28176166,59560.0,59545.0,0.385851]
[1617376730367,0.28176166,59560.0,59546.0,0.00303724]
[1617376730612,0.0052,59560.0,59547.0,0.385851]
[1617376731003,0.15362586,59558.0,59544.0,0.00303724]
[1617376731205,0.27656166,59559.0,59544.0,0.00303724]
[1617376731401,0.27656166,59558.0,59544.0,0.00303724]
[1617376731602,0.0052,59560.0,59545.0,0.385851]
[1617376731804,0.28176166,59560.0,59544.0,0.00303724]
[1617376732002,0.22506166,59559.0,59544.0,0.00303724]
[1617376732203,0.27656166,59559.0,59544.0,0.00303724]
[1617376732402,0.28176166,59560.0,59544.0,0.00303724]
[1617376732802,0.22478823,59559.0,59544.0,0.00303724]
[1617376733002,0.251975,59559.0,59544.0,0.00303724]
[1617376733853,0.0046,59556.0,59543.0,0.2]
[1617376734052,0.27656166,59555.0,59543.0,0.2]
[1617376734248,0.385851,59554.0,59543.0,0.2]
[1617376734443,0.27656166,59553.0,59543.0,0.2]
[1617376734646,0.27656166,59553.0,59531.0,0.00303724]
[1617376734647,0.317926,59552.0,59531.0,0.00303724]
[1617376734853,0.005,59548.0,59533.0,0.00303724]
[1617376735051,0.004,59553.0,59535.0,0.00303724]